[Event "*** Titled Tuesday Blitz"]
[Site "Chess.com"]
[Date "2020.12.01"]
[Round "3"]
[White "Shockerlover"]
[Black "MarceloPlaya"]
[Result "1-0"]
[WhiteElo "1887"]
[BlackElo "2264"]
[TimeControl "180+1"]
[EndTime "10:30:26 PST"]
[Termination "Shockerlover won on time"]

1. d4 {[%clk 0:03:00.9]} 1... e6 {[%clk 0:02:48]} 2. Nf3 {[%clk 0:03:01.8]} 2...
Nf6 {[%clk 0:02:36.7]} 3. c4 {[%clk 0:03:01.8]} 3... Bb4+ {[%clk 0:02:33.1]} 4.
Bd2 {[%clk 0:02:58.9]} 4... Bxd2+ {[%clk 0:02:32.2]} 5. Qxd2 {[%clk 0:02:59]}
5... O-O {[%clk 0:02:32.3]} 6. Nc3 {[%clk 0:02:58.4]} 6... d5 {[%clk 0:02:30.6]}
7. e3 {[%clk 0:02:56.4]} 7... Qe7 {[%clk 0:02:30]} 8. Bd3 {[%clk 0:02:55.5]}
8... Rd8 {[%clk 0:02:29.5]} 9. O-O {[%clk 0:02:55.1]} 9... dxc4 {[%clk
0:02:29.1]} 10. Bxc4 {[%clk 0:02:54.5]} 10... c5 {[%clk 0:02:29]} 11. Rfd1
{[%clk 0:02:39.9]} 11... Nc6 {[%clk 0:02:26.8]} 12. Qe2 {[%clk 0:02:37.4]} 12...
Bd7 {[%clk 0:02:24.2]} 13. Rac1 {[%clk 0:02:31.4]} 13... cxd4 {[%clk 0:01:11.2]}
14. Nxd4 {[%clk 0:02:27.4]} 14... Nxd4 {[%clk 0:01:10]} 15. exd4 {[%clk
0:02:20.4]} 15... Rac8 {[%clk 0:01:05.6]} 16. Bb3 {[%clk 0:02:17.3]} 16... a6
{[%clk 0:00:55]} 17. d5 {[%clk 0:02:16.6]} 17... Qe8 {[%clk 0:00:37.6]} 18. d6
{[%clk 0:01:45.5]} 18... Bc6 {[%clk 0:00:37]} 19. Qe5 {[%clk 0:01:35.7]} 19...
Nd7 {[%clk 0:00:35.1]} 20. Qg3 {[%clk 0:01:34]} 20... Nc5 {[%clk 0:00:30]} 21.
Bc4 {[%clk 0:01:27.7]} 21... b5 {[%clk 0:00:28.3]} 22. Be2 {[%clk 0:01:24.7]}
22... Ba8 {[%clk 0:00:25]} 23. Rd4 {[%clk 0:01:18]} 23... Rd7 {[%clk 0:00:24.1]}
24. Rcd1 {[%clk 0:01:17]} 24... Rcd8 {[%clk 0:00:22.6]} 25. Rg4 {[%clk
0:01:15.4]} 25... f5 {[%clk 0:00:21.2]} 26. Rgd4 {[%clk 0:01:11.6]} 26... e5
{[%clk 0:00:20.5]} 27. R4d2 {[%clk 0:01:09.9]} 27... f4 {[%clk 0:00:20.2]} 28.
Qg4 {[%clk 0:01:00.6]} 28... Qf8 {[%clk 0:00:17.7]} 29. b4 {[%clk 0:00:53.8]}
29... Ne4 {[%clk 0:00:15.8]} 30. Nxe4 {[%clk 0:00:52.4]} 30... Bxe4 {[%clk
0:00:15.8]} 31. Qe6+ {[%clk 0:00:51.6]} 31... Kh8 {[%clk 0:00:13.9]} 32. Qxe5
{[%clk 0:00:51.6]} 32... Bg6 {[%clk 0:00:13.5]} 33. Bg4 {[%clk 0:00:46.6]} 33...
Re8 {[%clk 0:00:10.8]} 34. Qc5 {[%clk 0:00:38.8]} 34... Rdd8 {[%clk 0:00:09.2]}
35. d7 {[%clk 0:00:35.7]} 35... Re7 {[%clk 0:00:09.1]} 36. Qc6 {[%clk
0:00:31.7]} 36... Bf5 {[%clk 0:00:08.1]} 37. Bxf5 {[%clk 0:00:26.9]} 37... Qxf5
{[%clk 0:00:08.2]} 38. Qxa6 {[%clk 0:00:25.4]} 38... f3 {[%clk 0:00:08.5]} 39.
gxf3 {[%clk 0:00:18.4]} 39... h6 {[%clk 0:00:07.7]} 40. Qd6 {[%clk 0:00:16]}
40... Qf8 {[%clk 0:00:06.1]} 41. f4 {[%clk 0:00:13.9]} 41... Rdxd7 {[%clk
0:00:06]} 42. Qc5 {[%clk 0:00:07.1]} 42... Qe8 {[%clk 0:00:04.6]} 43. Rxd7
{[%clk 0:00:06.1]} 43... Rxd7 {[%clk 0:00:04.4]} 44. Rxd7 {[%clk 0:00:03.9]}
44... Qxd7 {[%clk 0:00:04.7]} 45. Qe5 {[%clk 0:00:04.1]} 45... Qg4+ {[%clk
0:00:04.3]} 46. Kf1 {[%clk 0:00:04]} 46... Qd1+ {[%clk 0:00:04.1]} 47. Kg2
{[%clk 0:00:04.5]} 47... Qg4+ {[%clk 0:00:04.2]} 48. Kf1 {[%clk 0:00:05.1]}
48... Qh3+ {[%clk 0:00:04.8]} 49. Ke2 {[%clk 0:00:04.8]} 49... Qxh2 {[%clk
0:00:04.8]} 50. Qe8+ {[%clk 0:00:04.2]} 50... Kh7 {[%clk 0:00:04.3]} 51. Qe4+
{[%clk 0:00:04.7]} 51... Kg8 {[%clk 0:00:04.2]} 52. Qe8+ {[%clk 0:00:04.8]}
52... Kh7 {[%clk 0:00:03.8]} 53. Qe4+ {[%clk 0:00:04.4]} 53... g6 {[%clk
0:00:03.7]} 54. Qe7+ {[%clk 0:00:04]} 54... Kh8 {[%clk 0:00:03.9]} 55. Qf6+
{[%clk 0:00:03.9]} 55... Kh7 {[%clk 0:00:03.9]} 56. Qf7+ {[%clk 0:00:04.3]}
56... Kh8 {[%clk 0:00:03.7]} 57. Qxg6 {[%clk 0:00:03.4]} 57... Qxf4 {[%clk
0:00:02.2]} 58. Qe8+ {[%clk 0:00:02]} 58... Kh7 {[%clk 0:00:02.2]} 59. Qe7+
{[%clk 0:00:01.9]} 59... Kg6 {[%clk 0:00:02.3]} 60. Qe8+ {[%clk 0:00:02.3]}
60... Kg5 {[%clk 0:00:02.5]} 61. Qe3 {[%clk 0:00:01.7]} 61... Kf5 {[%clk
0:00:02.3]} 62. Qxf4+ {[%clk 0:00:01.6]} 62... Kxf4 {[%clk 0:00:02.7]} 63. Kd3
{[%clk 0:00:02.1]} 63... h5 {[%clk 0:00:01.9]} 64. a4 {[%clk 0:00:02.2]} 64...
h4 {[%clk 0:00:02.2]} 65. axb5 {[%clk 0:00:01.5]} 65... Ke5 {[%clk 0:00:02.7]}
66. b6 {[%clk 0:00:02.4]} 66... Kd6 {[%clk 0:00:02.5]} 67. b7 {[%clk 0:00:03.3]}
67... Kc7 {[%clk 0:00:02.7]} 68. b8=Q+ {[%clk 0:00:02.6]} 68... Kxb8 {[%clk
0:00:02.8]} 69. Ke4 {[%clk 0:00:02.8]} 69... Kc7 {[%clk 0:00:02.9]} 70. Kf4
{[%clk 0:00:03.1]} 70... Kb6 {[%clk 0:00:03]} 71. Kg4 {[%clk 0:00:03.7]} 71...
Kb5 {[%clk 0:00:03.8]} 72. Kxh4 {[%clk 0:00:04.1]} 72... Kxb4 {[%clk 0:00:04.4]}
73. f4 {[%clk 0:00:04.6]} 73... Kc5 {[%clk 0:00:05.1]} 74. Kg5 {[%clk
0:00:04.6]} 74... Kd6 {[%clk 0:00:05.5]} 75. Kg6 {[%clk 0:00:04.6]} 75... Ke7
{[%clk 0:00:05.2]} 76. Kg7 {[%clk 0:00:03.4]} 76... Ke6 {[%clk 0:00:05.2]} 77.
Kg6 {[%clk 0:00:03.7]} 77... Ke7 {[%clk 0:00:05.5]} 78. f5 {[%clk 0:00:04]}
78... Ke8 {[%clk 0:00:05.2]} 79. Kg7 {[%clk 0:00:03.7]} 79... Ke7 {[%clk
0:00:05.5]} 80. f6+ {[%clk 0:00:04]} 80... Ke6 {[%clk 0:00:05.6]} 81. f7 {[%clk
0:00:04.6]} 1-0

[Event "*** Titled Tuesday Blitz"]
[Site "Chess.com"]
[Date "2020.12.01"]
[Round "3"]
[White "Rytenko_V"]
[Black "Kostya_Nikologorskiy"]
[Result "1/2-1/2"]
[WhiteElo "2513"]
[BlackElo "2697"]
[TimeControl "180+1"]
[EndTime "10:30:27 PST"]
[Termination "Game drawn by stalemate"]

1. e4 {[%clk 0:03:00.9]} 1... e6 {[%clk 0:03:00.2]} 2. d3 {[%clk 0:02:59.6]}
2... d5 {[%clk 0:03:00.2]} 3. Nd2 {[%clk 0:03:00.5]} 3... c5 {[%clk 0:03:00.6]}
4. g3 {[%clk 0:02:59.3]} 4... Nc6 {[%clk 0:03:00.2]} 5. Bg2 {[%clk 0:02:59.8]}
5... Nf6 {[%clk 0:02:59.5]} 6. f4 {[%clk 0:02:59.3]} 6... dxe4 {[%clk
0:02:54.4]} 7. Nxe4 {[%clk 0:02:56.9]} 7... Nxe4 {[%clk 0:02:53.3]} 8. Bxe4
{[%clk 0:02:56.2]} 8... Be7 {[%clk 0:02:50.3]} 9. Ne2 {[%clk 0:02:46.3]} 9... h5
{[%clk 0:02:46.1]} 10. O-O {[%clk 0:02:44.3]} 10... h4 {[%clk 0:02:46.4]} 11.
Be3 {[%clk 0:02:43.3]} 11... hxg3 {[%clk 0:02:46]} 12. hxg3 {[%clk 0:02:38.4]}
12... Qc7 {[%clk 0:02:22.1]} 13. d4 {[%clk 0:02:26.3]} 13... cxd4 {[%clk
0:02:08.5]} 14. Nxd4 {[%clk 0:02:26.4]} 14... Nxd4 {[%clk 0:02:04]} 15. Qxd4
{[%clk 0:02:18.1]} 15... Bf6 {[%clk 0:02:02.5]} 16. Qb4 {[%clk 0:02:18]} 16...
Bd7 {[%clk 0:01:51.9]} 17. Rfd1 {[%clk 0:01:57.8]} 17... Bc6 {[%clk 0:01:50.3]}
18. Rd3 {[%clk 0:01:38.9]} 18... Rc8 {[%clk 0:01:22.3]} 19. c3 {[%clk
0:01:28.9]} 19... b6 {[%clk 0:01:13.9]} 20. Rad1 {[%clk 0:01:26.1]} 20... Qb7
{[%clk 0:01:11]} 21. Qb5 {[%clk 0:01:07.5]} 21... a6 {[%clk 0:01:00]} 22. Bxc6+
{[%clk 0:01:06.4]} 22... Rxc6 {[%clk 0:01:00.9]} 23. Qa4 {[%clk 0:00:44.2]}
23... b5 {[%clk 0:00:57.5]} 24. Qe4 {[%clk 0:00:43.5]} 24... Qc8 {[%clk
0:00:39.9]} 25. Kg2 {[%clk 0:00:38]} 25... Rc4 {[%clk 0:00:39.5]} 26. Qf3 {[%clk
0:00:36.7]} 26... b4 {[%clk 0:00:39.4]} 27. Bb6 {[%clk 0:00:26.4]} 27... bxc3
{[%clk 0:00:39.6]} 28. bxc3 {[%clk 0:00:22.1]} 28... O-O {[%clk 0:00:32.1]} 29.
Bd4 {[%clk 0:00:20.5]} 29... Bxd4 {[%clk 0:00:31.5]} 30. cxd4 {[%clk 0:00:21.4]}
30... Rc2+ {[%clk 0:00:31.7]} 31. R1d2 {[%clk 0:00:21.9]} 31... Rd8 {[%clk
0:00:31.1]} 32. Qe3 {[%clk 0:00:17.8]} 32... Qc6+ {[%clk 0:00:30.2]} 33. Kf2
{[%clk 0:00:17.3]} 33... Rc1 {[%clk 0:00:29.1]} 34. d5 {[%clk 0:00:16]} 34...
exd5 {[%clk 0:00:28.2]} 35. Rxd5 {[%clk 0:00:08.6]} 35... Rxd5 {[%clk
0:00:19.6]} 36. Rxd5 {[%clk 0:00:09.5]} 36... Qxd5 {[%clk 0:00:19.5]} 37. Qxc1
{[%clk 0:00:09.4]} 37... Qxa2+ {[%clk 0:00:20.1]} 38. Kf3 {[%clk 0:00:09.5]}
38... Qb3+ {[%clk 0:00:20.2]} 39. Kg4 {[%clk 0:00:09.6]} 39... Qe6+ {[%clk
0:00:20.4]} 40. Kh4 {[%clk 0:00:09.6]} 40... a5 {[%clk 0:00:20.9]} 41. Qc5
{[%clk 0:00:08.4]} 41... Qf6+ {[%clk 0:00:20.4]} 42. Kh3 {[%clk 0:00:07.8]}
42... Qd8 {[%clk 0:00:20.6]} 43. Qc6 {[%clk 0:00:07.3]} 43... g6 {[%clk
0:00:18.3]} 44. f5 {[%clk 0:00:07.1]} 44... gxf5 {[%clk 0:00:17.2]} 45. Qb5
{[%clk 0:00:07.6]} 45... Qa8 {[%clk 0:00:10.5]} 46. Qxf5 {[%clk 0:00:03.4]}
46... a4 {[%clk 0:00:10.8]} 47. Qg5+ {[%clk 0:00:03.3]} 47... Kf8 {[%clk
0:00:11.3]} 48. Qh6+ {[%clk 0:00:03.8]} 48... Ke7 {[%clk 0:00:11.3]} 49. Qg5+
{[%clk 0:00:02.7]} 49... Kd7 {[%clk 0:00:11.7]} 50. Qf5+ {[%clk 0:00:02.5]}
50... Ke8 {[%clk 0:00:11]} 51. Qe5+ {[%clk 0:00:02.1]} 51... Kd7 {[%clk
0:00:11.4]} 52. Qf5+ {[%clk 0:00:02.5]} 52... Kd6 {[%clk 0:00:10.1]} 53. Qf6+
{[%clk 0:00:02.3]} 53... Kc5 {[%clk 0:00:10.2]} 54. Qe7+ {[%clk 0:00:02.6]}
54... Kb5 {[%clk 0:00:09.6]} 55. Qd7+ {[%clk 0:00:03]} 55... Qc6 {[%clk
0:00:09.5]} 56. Qxf7 {[%clk 0:00:03.5]} 56... a3 {[%clk 0:00:08.9]} 57. Qb3+
{[%clk 0:00:03.6]} 57... Kc5 {[%clk 0:00:09.4]} 58. Qxa3+ {[%clk 0:00:04.5]}
58... Kd4 {[%clk 0:00:09.7]} 59. Qb2+ {[%clk 0:00:03.9]} 59... Kd3 {[%clk
0:00:09.1]} 60. Kh2 {[%clk 0:00:04.7]} 60... Qh6+ {[%clk 0:00:08.6]} 61. Kg2
{[%clk 0:00:04.5]} 61... Qc6+ {[%clk 0:00:08.4]} 62. Kg1 {[%clk 0:00:04.9]}
62... Qc5+ {[%clk 0:00:06.1]} 63. Qf2 {[%clk 0:00:05.5]} 63... Qg5 {[%clk
0:00:06.1]} 64. Qf3+ {[%clk 0:00:05.2]} 64... Kd4 {[%clk 0:00:06.3]} 65. Kg2
{[%clk 0:00:06.1]} 65... Ke5 {[%clk 0:00:06.6]} 66. Qf2 {[%clk 0:00:06.2]} 66...
Qg8 {[%clk 0:00:05.8]} 67. Qc5+ {[%clk 0:00:06]} 67... Kf6 {[%clk 0:00:05.6]}
68. Qd4+ {[%clk 0:00:06.2]} 68... Kg5 {[%clk 0:00:05.6]} 69. Qf4+ {[%clk
0:00:06.1]} 69... Kh5 {[%clk 0:00:04.8]} 70. Qh4+ {[%clk 0:00:06.3]} 70... Kg6
{[%clk 0:00:05.3]} 71. Qg4+ {[%clk 0:00:06.8]} 71... Kf7 {[%clk 0:00:06.2]} 72.
Qxg8+ {[%clk 0:00:07.7]} 72... Kxg8 {[%clk 0:00:07.1]} 73. Kf3 {[%clk
0:00:08.1]} 73... Kf7 {[%clk 0:00:07.4]} 74. Kf4 {[%clk 0:00:07.9]} 74... Kf6
{[%clk 0:00:07.8]} 75. Kg4 {[%clk 0:00:08.4]} 75... Kg6 {[%clk 0:00:08.2]} 76.
Kf4 {[%clk 0:00:09]} 76... Kf6 {[%clk 0:00:08.6]} 77. Ke3 {[%clk 0:00:09.3]}
77... Ke5 {[%clk 0:00:08.7]} 78. Kf3 {[%clk 0:00:10.2]} 78... Kf5 {[%clk
0:00:09.1]} 79. Kg2 {[%clk 0:00:10.4]} 79... Kg4 {[%clk 0:00:09.3]} 80. Kh2
{[%clk 0:00:10.9]} 80... Kg5 {[%clk 0:00:10.2]} 81. Kg1 {[%clk 0:00:10.5]} 81...
Kg4 {[%clk 0:00:10.6]} 82. Kg2 {[%clk 0:00:11.4]} 82... Kg5 {[%clk 0:00:11.4]}
83. Kf3 {[%clk 0:00:11.9]} 83... Kf5 {[%clk 0:00:11.7]} 84. g4+ {[%clk
0:00:12.8]} 84... Kg5 {[%clk 0:00:12.1]} 85. Kg3 {[%clk 0:00:13.7]} 85... Kg6
{[%clk 0:00:12.6]} 86. Kh4 {[%clk 0:00:14.6]} 86... Kh6 {[%clk 0:00:13]} 87. g5+
{[%clk 0:00:15.4]} 87... Kg6 {[%clk 0:00:13.5]} 88. Kg4 {[%clk 0:00:16.3]} 88...
Kg7 {[%clk 0:00:14]} 89. Kf5 {[%clk 0:00:17.2]} 89... Kf7 {[%clk 0:00:14.4]} 90.
Ke5 {[%clk 0:00:16.9]} 90... Kg6 {[%clk 0:00:14.4]} 91. Kf4 {[%clk 0:00:17.8]}
91... Kg7 {[%clk 0:00:14.6]} 92. Kg3 {[%clk 0:00:18.1]} 92... Kg6 {[%clk
0:00:15]} 93. Kg4 {[%clk 0:00:19]} 93... Kg7 {[%clk 0:00:15.9]} 94. Kh5 {[%clk
0:00:19.9]} 94... Kh7 {[%clk 0:00:16.2]} 95. g6+ {[%clk 0:00:20.8]} 95... Kg7
{[%clk 0:00:16.6]} 96. Kg5 {[%clk 0:00:21.7]} 96... Kg8 {[%clk 0:00:16.9]} 97.
Kf5 {[%clk 0:00:22.2]} 97... Kg7 {[%clk 0:00:16.8]} 98. Kg5 {[%clk 0:00:22.8]}
98... Kg8 {[%clk 0:00:16.9]} 99. Kh6 {[%clk 0:00:23.7]} 99... Kh8 {[%clk
0:00:17.1]} 100. g7+ {[%clk 0:00:24.6]} 100... Kg8 {[%clk 0:00:17.5]} 101. Kg6
{[%clk 0:00:25.5]} 1/2-1/2

[Event "*** Titled Tuesday Blitz"]
[Site "Chess.com"]
[Date "2020.12.01"]
[Round "3"]
[White "aleksey1203borisovi4"]
[Black "natelleka"]
[Result "0-1"]
[WhiteElo "2469"]
[BlackElo "2191"]
[TimeControl "180+1"]
[EndTime "10:30:29 PST"]
[Termination "natelleka won by checkmate"]

1. g3 {[%clk 0:03:00.9]} 1... d5 {[%clk 0:02:59.4]} 2. Bg2 {[%clk 0:03:01.8]}
2... Bf5 {[%clk 0:02:59.6]} 3. d3 {[%clk 0:03:01.2]} 3... Nf6 {[%clk 0:02:59.5]}
4. Nc3 {[%clk 0:03:00.6]} 4... e6 {[%clk 0:02:59]} 5. Bg5 {[%clk 0:02:58.3]}
5... Be7 {[%clk 0:02:58.3]} 6. e4 {[%clk 0:02:50.6]} 6... Bg6 {[%clk 0:02:12.2]}
7. Nge2 {[%clk 0:02:45.5]} 7... c6 {[%clk 0:02:03.7]} 8. O-O {[%clk 0:02:41.7]}
8... h6 {[%clk 0:02:03]} 9. Bf4 {[%clk 0:02:36]} 9... O-O {[%clk 0:02:01.3]} 10.
h3 {[%clk 0:02:31.9]} 10... Nbd7 {[%clk 0:01:59.9]} 11. a3 {[%clk 0:02:19.5]}
11... e5 {[%clk 0:01:39.4]} 12. Bd2 {[%clk 0:02:12.9]} 12... Nc5 {[%clk
0:01:22]} 13. exd5 {[%clk 0:02:02.5]} 13... cxd5 {[%clk 0:01:21.7]} 14. Kh1
{[%clk 0:01:51.4]} 14... Qd7 {[%clk 0:00:55.3]} 15. Kh2 {[%clk 0:01:49.1]} 15...
Rfe8 {[%clk 0:00:48.2]} 16. b4 {[%clk 0:01:43.3]} 16... Ne6 {[%clk 0:00:45.4]}
17. f4 {[%clk 0:01:34]} 17... exf4 {[%clk 0:00:19.2]} 18. Nxf4 {[%clk
0:01:34.9]} 18... Nxf4 {[%clk 0:00:19.3]} 19. Bxf4 {[%clk 0:01:33.9]} 19... Bd6
{[%clk 0:00:19.7]} 20. Qd2 {[%clk 0:01:24.9]} 20... Rac8 {[%clk 0:00:19]} 21.
Ne2 {[%clk 0:01:07.5]} 21... Qc7 {[%clk 0:00:16.6]} 22. Bxd6 {[%clk 0:00:52.4]}
22... Qxd6 {[%clk 0:00:16.6]} 23. Nf4 {[%clk 0:00:52.9]} 23... Bh7 {[%clk
0:00:16.8]} 24. Qf2 {[%clk 0:00:46.5]} 24... Rc7 {[%clk 0:00:16.1]} 25. Rae1
{[%clk 0:00:39]} 25... Rec8 {[%clk 0:00:16]} 26. Re2 {[%clk 0:00:39.5]} 26... b6
{[%clk 0:00:14.5]} 27. Rfe1 {[%clk 0:00:21.7]} 27... a5 {[%clk 0:00:13.2]} 28.
bxa5 {[%clk 0:00:21.5]} 28... bxa5 {[%clk 0:00:13.2]} 29. a4 {[%clk 0:00:22.2]}
29... Qb4 {[%clk 0:00:10.8]} 30. Nxd5 {[%clk 0:00:20.8]} 30... Nxd5 {[%clk
0:00:10.6]} 31. Bxd5 {[%clk 0:00:21.7]} 31... Qxa4 {[%clk 0:00:09.7]} 32. Bxf7+
{[%clk 0:00:21.7]} 32... Rxf7 {[%clk 0:00:09.7]} 33. Qe3 {[%clk 0:00:20]} 33...
Kf8 {[%clk 0:00:08.6]} 34. Rf2 {[%clk 0:00:19.1]} 34... Rxf2+ {[%clk 0:00:03.9]}
35. Qxf2+ {[%clk 0:00:20]} 35... Kg8 {[%clk 0:00:04.3]} 36. Re7 {[%clk
0:00:19.5]} 36... Rxc2 {[%clk 0:00:03.9]} 37. Re2 {[%clk 0:00:18.2]} 37... Rxe2
{[%clk 0:00:04]} 38. Qxe2 {[%clk 0:00:19.1]} 38... Qd7 {[%clk 0:00:03.7]} 39.
Qe5 {[%clk 0:00:17.4]} 39... Bxd3 {[%clk 0:00:03.3]} 40. Qxa5 {[%clk 0:00:16.8]}
40... Bf5 {[%clk 0:00:03.4]} 41. Qa8+ {[%clk 0:00:16.4]} 41... Kh7 {[%clk
0:00:03.2]} 42. Qg2 {[%clk 0:00:16.9]} 42... Qd3 {[%clk 0:00:03.1]} 43. g4
{[%clk 0:00:16.9]} 43... Be4 {[%clk 0:00:03.4]} 44. Qf2 {[%clk 0:00:17]} 44...
Qd6+ {[%clk 0:00:03.3]} 45. Kg1 {[%clk 0:00:16.5]} 45... Qd3 {[%clk 0:00:03.5]}
46. Kh2 {[%clk 0:00:17]} 46... Qf3 {[%clk 0:00:03.8]} 47. Qg1 {[%clk 0:00:12.5]}
47... Qe2+ {[%clk 0:00:03.6]} 48. Kg3 {[%clk 0:00:13]} 48... Qf3+ {[%clk
0:00:03.9]} 49. Kh2 {[%clk 0:00:12.9]} 49... h5 {[%clk 0:00:04.1]} 50. gxh5
{[%clk 0:00:12.4]} 50... Qxh5 {[%clk 0:00:04.4]} 51. Qe3 {[%clk 0:00:11.4]}
51... Qg6 {[%clk 0:00:04.4]} 52. Qe2 {[%clk 0:00:10.4]} 52... Qf5 {[%clk
0:00:04.4]} 53. Qd2 {[%clk 0:00:09.2]} 53... Qe5+ {[%clk 0:00:04.4]} 54. Kg1
{[%clk 0:00:09.2]} 54... Qd5 {[%clk 0:00:04.4]} 55. Qf2 {[%clk 0:00:08.2]} 55...
Qe5 {[%clk 0:00:03.6]} 56. Qh4+ {[%clk 0:00:07.6]} 56... Kg8 {[%clk 0:00:03.1]}
57. Qd8+ {[%clk 0:00:08]} 57... Kf7 {[%clk 0:00:03.5]} 58. Qd7+ {[%clk
0:00:07.8]} 58... Kg6 {[%clk 0:00:03.8]} 59. Qg4+ {[%clk 0:00:07.7]} 59... Qg5
{[%clk 0:00:03.7]} 60. Qxg5+ {[%clk 0:00:03.9]} 60... Kxg5 {[%clk 0:00:04]} 61.
Kf2 {[%clk 0:00:02.2]} 61... Kh4 {[%clk 0:00:04.3]} 62. Ke3 {[%clk 0:00:02.5]}
62... Bc6 {[%clk 0:00:04.6]} 63. Kf2 {[%clk 0:00:02.6]} 63... Kxh3 {[%clk
0:00:04.8]} 64. Kg1 {[%clk 0:00:03.5]} 64... g5 {[%clk 0:00:05.2]} 65. Kf1
{[%clk 0:00:04.4]} 65... g4 {[%clk 0:00:05.7]} 66. Kg1 {[%clk 0:00:05.3]} 66...
g3 {[%clk 0:00:06.1]} 67. Kf1 {[%clk 0:00:05.2]} 67... Kh2 {[%clk 0:00:06.6]}
68. Ke2 {[%clk 0:00:04.9]} 68... g2 {[%clk 0:00:07]} 69. Ke3 {[%clk 0:00:05.8]}
69... g1=Q+ {[%clk 0:00:07]} 70. Kf4 {[%clk 0:00:06.7]} 70... Qf1+ {[%clk
0:00:07.4]} 71. Kg4 {[%clk 0:00:06.3]} 71... Qf2 {[%clk 0:00:07.5]} 72. Kh5
{[%clk 0:00:05.8]} 72... Qf4 {[%clk 0:00:07.7]} 73. Kg6 {[%clk 0:00:05.8]} 73...
Qe5 {[%clk 0:00:08.1]} 74. Kf7 {[%clk 0:00:05.7]} 74... Qd6 {[%clk 0:00:08.2]}
75. Kg8 {[%clk 0:00:05]} 75... Qe7 {[%clk 0:00:08.6]} 76. Kh8 {[%clk 0:00:05.2]}
76... Be4 {[%clk 0:00:08.5]} 77. Kg8 {[%clk 0:00:05.4]} 77... Bh7+ {[%clk
0:00:07.4]} 78. Kh8 {[%clk 0:00:05.5]} 78... Bg8 {[%clk 0:00:07.6]} 79. Kxg8
{[%clk 0:00:05]} 79... Kg3 {[%clk 0:00:07.8]} 80. Kh8 {[%clk 0:00:05.9]} 80...
Kg4 {[%clk 0:00:07.8]} 81. Kg8 {[%clk 0:00:06.8]} 81... Kg5 {[%clk 0:00:08]} 82.
Kh8 {[%clk 0:00:07.7]} 82... Kg6 {[%clk 0:00:08.4]} 83. Kg8 {[%clk 0:00:08.6]}
83... Qg7# {[%clk 0:00:08.8]} 0-1

[Event "*** Titled Tuesday Blitz"]
[Site "Chess.com"]
[Date "2020.12.01"]
[Round "4"]
[White "klimkoj"]
[Black "Rap_woyska"]
[Result "0-1"]
[WhiteElo "2628"]
[BlackElo "2472"]
[TimeControl "180+1"]
[EndTime "10:33:17 PST"]
[Termination "Rap_woyska won by resignation"]

1. e4 {[%clk 0:03:00.9]} 1... e6 {[%clk 0:03:00.1]} 2. d4 {[%clk 0:03:00.8]}
2... d5 {[%clk 0:03:00.7]} 3. Nc3 {[%clk 0:03:01.3]} 3... Nf6 {[%clk 0:03:00.8]}
4. Bg5 {[%clk 0:03:00.4]} 4... dxe4 {[%clk 0:03:01.1]} 5. Nxe4 {[%clk
0:03:00.4]} 5... Be7 {[%clk 0:03:01.6]} 6. Bxf6 {[%clk 0:02:57.8]} 6... gxf6
{[%clk 0:03:02.5]} 7. g3 {[%clk 0:02:56.4]} 7... f5 {[%clk 0:03:01.2]} 8. Nc3
{[%clk 0:02:56.3]} 8... Bf6 {[%clk 0:02:57.8]} 9. Nge2 {[%clk 0:02:54.5]} 9...
Nc6 {[%clk 0:02:57]} 10. d5 {[%clk 0:02:46.8]} 10... Nb4 {[%clk 0:02:57.2]} 11.
Bg2 {[%clk 0:02:43.8]} 11... Nxd5 {[%clk 0:02:34.4]} 12. Nxd5 {[%clk 0:02:41.7]}
12... exd5 {[%clk 0:02:34.8]} 13. Bxd5 {[%clk 0:02:38.7]} 13... Bxb2 {[%clk
0:02:32.9]} 14. Rb1 {[%clk 0:02:38.2]} 14... Bf6 {[%clk 0:02:20.8]} 15. Bxb7
{[%clk 0:02:33.1]} 15... Qxd1+ {[%clk 0:02:20.6]} 16. Kxd1 {[%clk 0:02:34]}
16... Bxb7 {[%clk 0:02:20.8]} 17. Rxb7 {[%clk 0:02:34.9]} 17... O-O-O+ {[%clk
0:02:21.3]} 0-1

[Event "*** Titled Tuesday Blitz"]
[Site "Chess.com"]
[Date "2020.12.01"]
[Round "4"]
[White "emperor87"]
[Black "DraG0s3L"]
[Result "0-1"]
[WhiteElo "2717"]
[BlackElo "2539"]
[TimeControl "180+1"]
[EndTime "10:33:18 PST"]
[Termination "DraG0s3L won by resignation"]

1. e4 {[%clk 0:02:59.5]} 1... e6 {[%clk 0:02:59.8]} 2. d4 {[%clk 0:02:58.8]}
2... d5 {[%clk 0:03:00.4]} 3. Nd2 {[%clk 0:02:59.7]} 3... c5 {[%clk 0:03:00.1]}
4. Ngf3 {[%clk 0:02:58.6]} 4... cxd4 {[%clk 0:02:59.2]} 5. Nxd4 {[%clk
0:02:57.7]} 5... Nc6 {[%clk 0:02:58.1]} 6. Bb5 {[%clk 0:02:56.8]} 6... Bd7
{[%clk 0:02:56.3]} 7. Nxc6 {[%clk 0:02:56.5]} 7... bxc6 {[%clk 0:02:55.6]} 8.
Bd3 {[%clk 0:02:56.6]} 8... Bd6 {[%clk 0:02:55.6]} 9. O-O {[%clk 0:02:55.9]}
9... Qc7 {[%clk 0:02:56.1]} 10. h3 {[%clk 0:02:55.5]} 10... Nf6 {[%clk
0:02:55.6]} 11. b3 {[%clk 0:02:55]} 11... O-O {[%clk 0:02:52.3]} 12. Bb2 {[%clk
0:02:54.8]} 12... e5 {[%clk 0:02:52.8]} 13. f4 {[%clk 0:02:48.2]} 13... Rfe8
{[%clk 0:02:45.6]} 14. fxe5 {[%clk 0:02:46.8]} 14... Bxe5 {[%clk 0:02:45.9]} 15.
Bxe5 {[%clk 0:02:46.8]} 15... Qxe5 {[%clk 0:02:37]} 16. exd5 {[%clk 0:02:46]}
16... Qe3+ {[%clk 0:02:25.6]} 17. Rf2 {[%clk 0:02:41.8]} 17... cxd5 {[%clk
0:02:18.6]} 18. Qh5 {[%clk 0:02:38.6]} 18... Nxh5 {[%clk 0:02:16.6]} 0-1

[Event "*** Titled Tuesday Blitz"]
[Site "Chess.com"]
[Date "2020.12.01"]
[Round "4"]
[White "MFBerna"]
[Black "Iskusnyh"]
[Result "1/2-1/2"]
[WhiteElo "2430"]
[BlackElo "2621"]
[TimeControl "180+1"]
[EndTime "10:34:38 PST"]
[Termination "Game drawn by repetition"]

1. e4 {[%clk 0:03:00.9]} 1... e6 {[%clk 0:02:59.8]} 2. d4 {[%clk 0:03:01.1]}
2... d5 {[%clk 0:03:00.3]} 3. Nd2 {[%clk 0:03:00.5]} 3... c5 {[%clk 0:02:59]} 4.
exd5 {[%clk 0:02:59.3]} 4... Qxd5 {[%clk 0:02:58.5]} 5. Ngf3 {[%clk 0:02:58.9]}
5... cxd4 {[%clk 0:02:58.4]} 6. Bc4 {[%clk 0:02:59.4]} 6... Qd7 {[%clk
0:02:58.1]} 7. Nb3 {[%clk 0:02:55.4]} 7... Qc7 {[%clk 0:02:50.5]} 8. Qxd4 {[%clk
0:02:50.1]} 8... Nf6 {[%clk 0:02:43.5]} 9. Bf4 {[%clk 0:02:47.8]} 9... Qd7
{[%clk 0:02:23.3]} 10. O-O {[%clk 0:02:40.7]} 10... Qxd4 {[%clk 0:02:15.4]} 11.
Nbxd4 {[%clk 0:02:39.9]} 11... a6 {[%clk 0:02:14.4]} 12. Ne5 {[%clk 0:02:38.6]}
12... Nbd7 {[%clk 0:02:11.2]} 13. Nxf7 {[%clk 0:02:05.9]} 13... Kxf7 {[%clk
0:02:09.7]} 14. Nxe6 {[%clk 0:02:06.4]} 14... Kg6 {[%clk 0:02:00.5]} 15. Bd3+
{[%clk 0:01:48.2]} 15... Kf7 {[%clk 0:01:59.3]} 16. Nc7 {[%clk 0:01:48.8]} 16...
Ra7 {[%clk 0:01:56.9]} 17. Bc4+ {[%clk 0:01:48.5]} 17... Kg6 {[%clk 0:01:56]}
18. Bd3+ {[%clk 0:01:48.9]} 18... Kf7 {[%clk 0:01:55.6]} 19. Bc4+ {[%clk
0:01:46.6]} 19... Kg6 {[%clk 0:01:53.9]} 20. Bd3+ {[%clk 0:01:46.9]} 20... Kf7
{[%clk 0:01:46.5]} 1/2-1/2